[Event "35th European Club Cup 2019"]
[Site "Ulcinj"]
[Date "2019.11.13"]
[Round "4.36"]
[White "Kaasen, Tor Fredrik"]
[Black "Mikhalevski, Alexander"]
[Result "0-1"]
[ECO "D31"]
[WhiteElo "2405"]
[BlackElo "2425"]
[Annotator "NA"]
[PlyCount "136"]
[EventDate "2019.11.10"]
[EventType "team-tourn"]
[EventCountry "MNE"]
[SourceTitle "playchess.com"]
[Source "ChessBase"]
[SourceQuality "1"]
[WhiteTeam "Valerenga"]
[BlackTeam "Rehovot"]
[TimeControl "40/5400+30:1800+30"]

1. d4 {[%emt 0:00:00]} d5 {[%emt 0:00:00]} 2. c4 {[%emt 0:00:08]} e6 {[%emt 0:00:00]} 3. Nc3 {[%emt 0:00:20]} Be7 {[%emt 0:00:01]} 4. cxd5 {[%emt 0:00:49]} exd5 {[%emt 0:00:09]} 5. Bf4 {[%emt 0:00:13]} Nf6 {[%emt 0:00:08]} 6. e3 {[%emt 0:00:23]} O-O {[%emt 0:00:20]} 7. Bd3 {[%emt 0:00:35]} c5 {[%emt 0:00:09]} 8. Nge2 {[%emt 0:00:37]} Nc6 {[%emt 0:00:14]} 9. O-O {[%emt 0:00:28]} Bg4 {[%emt 0:00:08]} 10. dxc5 {[%emt 0:02:51]} Bxc5 {[%emt 0:00:14]} 11. h3 {[%emt 0:00:06]} Bxe2 {[%emt 0:01:54]} 12. Nxe2 {[%emt 0:00:45]} d4 {[%emt 0:01:46]} 13. Rc1 {[%emt 0:01:37]} Bb6 {[%emt 0:04:34]} 14. e4 {[%emt 0:01:37]} Nd7 {[%emt 0:08:38]} 15. Bc4 {[%emt 0:10:02]} Qh4 {[%emt 0:15:39]} 16. Bd5 {[%emt 0:03:50]} Nf6 {[%emt 0:09:23]} 17. Bg3 {[%emt 0:07:46]} Qg5 {[%emt 0:01:32]} 18. Nf4 {[%emt 0:01:53]} Nxd5 {[%emt 0:01:32]} 19. Nxd5 {[%emt 0:01:16]} Rfe8 {[%emt 0:03:02]} 20. Re1 {[%emt 0:06:04]} Ba5 {[%emt 0:22:14]} 21. Re2 {[%emt 0:02:56]} Rad8 {[%emt 0:01:31]} 22. Rc4 {[%emt 0:04:39]} f5 {[%emt 0:05:38]} 23. exf5 {[%emt 0:10:58]} Qxf5 {[%emt 0:00:53]} 24. Rxc6 {[%emt 0:00:56]} Rxe2 {[%emt 0:07:30]} 25. Qxe2 {[%emt 0:00:59]} Qxd5 {[%emt 0:01:02]} 26. Re6 {[%emt 0:13:47]} h6 {[%emt 0:03:36]} 27. Re5 {[%emt 0:03:57]} d3 {[%emt 0:00:13]} 28. Qg4 {[%emt 0:00:56]} Qd7 {[%emt 0:06:30]} 29. Qd1 {[%emt 0:06:15]} d2 {[%emt 0:00:08]} 30. Rxa5 {[%emt 0:03:09]} Rc8 {[%emt 0:00:18]} 31. Kh2 {[%emt 0:05:04]} Rc1 {[%emt 0:00:33]} 32. Qb3+ {[%emt 0:00:14]} Kh8 {[%emt 0:01:11]} 33. Rd5 {[%emt 0:01:24]} Qxd5 {[%emt 0:00:26]} 34. Qxd5 {[%emt 0:00:08]} d1=Q {[%emt 0:00:07]} 35. Qxd1 {[%emt 0:00:42]} Rxd1 {[%emt 0:00:05]} 36. Be5 {[%emt 0:00:19]} Kg8 {[%emt 0:03:20]} 37. Kg3 {[%emt 0:01:57]} Kf7 {[%emt 0:00:07]} 38. Bc3 {[%emt 0:00:55]} g6 {[%emt 0:00:21]} 39. Kf3 {[%emt 0:00:39]} Rh1 {[%emt 0:00:59]} 40. Ke4 {[%emt 0:00:00]} Ke6 {[%emt 0:00:00]} 41. Bg7 {[%emt 0:04:34]} Re1+ {[%emt 0:02:53]} 42. Kf3 {[%emt 0:00:29]} h5 {[%emt 0:04:53]} 43. Bc3 {[%emt 0:01:33]} Rc1 {[%emt 0:01:50]} 44. a3 {[%emt 0:04:00]} Rc2 {[%emt 0:01:55]} 45. Ke3 {[%emt 0:00:31]} b6 {[%emt 0:01:26]} 46. Bd4 {[%emt 0:00:30]} Kd5 {[%emt 0:00:08]} 47. Bf6 {[%emt 0:00:50]} a5 {[%emt 0:00:42]} 48. g4 {[%emt 0:00:50]} h4 {[%emt 0:01:26]} 49. Kf3 {[%emt 0:04:57]} b5 {[%emt 0:00:22]} 50. Bg7 {[%emt 0:05:33]} Ke6 {[%emt 0:08:46]} 51. Bc3 {[%emt 0:01:51]} b4 {[%emt 0:00:19]} 52. Bd4 {[%emt 0:02:11]} Kd5 {[%emt 0:03:35]} 53. Bf6 {[%emt 0:00:40]} Kc4 {[%emt 0:02:45]} 54. g5 {[%emt 0:03:14]} Kd5 {[%emt 0:01:04]} 55. axb4 {[%emt 0:01:40]} axb4 {[%emt 0:00:06]} 56. Ke3 {[%emt 0:01:11]} b3 {[%emt 0:01:35]} 57. Bg7 {[%emt 0:00:41]} Ke6 {[%emt 0:00:14]} 58. Bf6 {[%emt 0:00:37]} Kf5 {[%emt 0:00:09]} 59. Kf3 {[%emt 0:00:10]} Rd2 {[%emt 0:00:27]} 60. Ke3 {[%emt 0:00:23]} Rd1 {[%emt 0:00:09]} 61. Kf3 {[%emt 0:01:41]} Rd3+ {[%emt 0:00:10]} 62. Kg2 {[%emt 0:00:09]} Kf4 {[%emt 0:00:12]} 63. Be7 {[%emt 0:00:18]} Rd2 {[%emt 0:00:18]} 64. Bf6 {[%emt 0:00:11]} Rc2 {[%emt 0:00:16]} 65. Bd4 {[%emt 0:00:58]} Kxg5 {[%emt 0:00:53]} 66. Kf3 {[%emt 0:00:04]} Kf5 {[%emt 0:00:05]} 67. Bg7 {[%emt 0:00:10]} Rd2 {[%emt 0:00:14]} 68. Ke3 {[%emt 0:01:19]} Rd1 {[%emt 0:00:08] Kd4 Ke5+} 0-1

[Event "35th European Club Cup 2019"]
[Site "Ulcinj"]
[Date "2019.11.14"]
[Round "5.1"]
[White "Leenhouts, Koen"]
[Black "Admiraal, Miguoel"]
[Result "1/2-1/2"]
[ECO "B11"]
[WhiteElo "2424"]
[BlackElo "2510"]
[Annotator "ChessBase"]
[PlyCount "60"]
[EventDate "2019.11.10"]
[EventType "team-tourn"]
[EventCountry "MNE"]
[SourceTitle "playchess.com"]
[Source "ChessBase"]
[SourceQuality "1"]
[WhiteTeam "HWP Sas van Gent"]
[BlackTeam "Kennemer Combinatie"]
[TimeControl "40/5400+30:1800+30"]

1. e4 {[%emt 0:00:00]} c6 {[%emt 0:00:00]} 2. Nc3 {[%emt 0:00:09]} d5 {[%emt 0:00:01]} 3. Nf3 {[%emt 0:00:08]} Bg4 {[%emt 0:04:14]} 4. h3 {[%emt 0:00:10]} Bxf3 {[%emt 0:00:06]} 5. Qxf3 {[%emt 0:00:09]} e6 {[%emt 0:00:52]} 6. d4 {[%emt 0:00:30]} Nf6 {[%emt 0:02:55]} 7. exd5 {[%emt 0:00:00]} cxd5 {[%emt 0:02:12]} 8. Bd3 {[%emt 0:00:00]} Nc6 {[%emt 0:00:30]} 9. Ne2 {[%emt 0:00:01]} Be7 {[%emt 0:07:40]} 10. c3 {[%emt 0:05:42]} h6 11. O-O {[%emt 0:16:52]} O-O {[%emt 0:15:58]} 12. Ng3 {[%emt 0:11:17]} Re8 13. Be3 {[%emt 0:00:30]} Rb8 {[%emt 0:19:22]} 14. Rad1 {[%emt 0:09:22]} b5 {[%emt 0:10:41]} 15. Bb1 {[%emt 0:00:46]} Na5 {[%emt 0:01:30]} 16. Nh5 {[%emt 0:04:20]} Nxh5 {[%emt 0:01:02]} 17. Qxh5 b4 18. Bxh6 {[%emt 0:10:41]} gxh6 {[%emt 0:14:30]} 19. Qxh6 {[%emt 0:00:06]} f5 20. Qg6+ {[%emt 0:00:06]} Kf8 {[%emt 0:00:09]} 21. Qh6+ {[%emt 0:00:06]} Kg8 {[%emt 0:00:04]} 22. Qg6+ Kf8 {[%emt 0:00:06]} 23. Qh6+ {[%emt 0:00:09]} Kg8 24. Qg6+ Kf8 {[%emt 0:00:18]} 25. Qh6+ {[%emt 0:00:08]} Kg8 26. Qg6+ {[%emt 0:00:04]} Kf8 {[%emt 0:00:10]} 27. Qh6+ {[%emt 0:00:03]} Kg8 {[%emt 0:00:05]} 28. Qg6+ {[%emt 0:00:04]} Kf8 {[%emt 0:00:05]} 29. Qh6+ {[%emt 0:00:04]} Kg8 {[%emt 0:00:04]} 30. Qg6+ Kf8 {[%emt 0:00:06]} 1/2-1/2

[Event "35th European Club Cup 2019"]
[Site "Ulcinj"]
[Date "2019.11.14"]
[Round "5.2"]
[White "Postny, Evgeny"]
[Black "Gozzoli, Yannick"]
[Result "0-1"]
[ECO "D70"]
[WhiteElo "2615"]
[BlackElo "2600"]
[Annotator "RC"]
[PlyCount "96"]
[EventDate "2019.11.10"]
[EventType "team-tourn"]
[EventCountry "MNE"]
[SourceTitle "playchess.com"]
[Source "ChessBase"]
[SourceQuality "1"]
[WhiteTeam "Beer Sheva"]
[BlackTeam "Asnieres"]
[TimeControl "40/5400+30:1800+30"]

1. c4 Nf6 2. d4 g6 3. Nf3 Bg7 4. e3 O-O 5. Be2 d6 6. Nc3 Bf5 7. O-O Ne4 8. Nxe4 Bxe4 9. Bd3 Bxd3 10. Qxd3 c5 11. d5 Nd7 12. a4 a6 13. Ra3 b5 14. axb5 axb5 15. cxb5 Qb6 16. Bd2 Bxb2 17. Ra6 Rxa6 18. bxa6 Ra8 19. Rb1 Rxa6 20. Qe4 Ra1 21. Rxa1 Bxa1 22. Qxe7 Qb1+ 23. Ne1 Ne5 24. Qe8+ Kg7 25. Qa4 c4 26. Qc2 Qb3 27. h3 Kg8 28. Kh2 Nd7 29. e4 Be5+ 30. g3 Nc5 31. Be3 Qxc2 32. Nxc2 Nxe4 33. Na3 c3 34. Nc2 f5 35. Kg2 g5 36. Kf3 Kf7 37. g4 Kg6 38. Bb6 Nf6 39. gxf5+ Kxf5 40. Ne3+ Kg6 41. Ba5 h5 42. Bb4 g4+ 43. hxg4 h4 44. Ba3 h3 45. Nc4 Nxg4 46. Nxe5+ Nxe5+ 47. Kg3 c2 48. Kxh3 Kf5 0-1

[Event "35th European Club Cup 2019"]
[Site "Ulcinj"]
[Date "2019.11.14"]
[Round "5.2"]
[White "Van der Lende, Ilias"]
[Black "Cardon, Helmut"]
[Result "1/2-1/2"]
[ECO "A13"]
[WhiteElo "2408"]
[BlackElo "2398"]
[Annotator "NA"]
[PlyCount "23"]
[EventDate "2019.11.10"]
[EventType "team-tourn"]
[EventCountry "MNE"]
[SourceTitle "playchess.com"]
[Source "ChessBase"]
[SourceQuality "1"]
[WhiteTeam "Kennemer Combinatie"]
[BlackTeam "HWP Sas van Gent"]
[TimeControl "40/5400+30:1800+30"]

1. Nf3 Nf6 2. c4 e6 3. g3 d5 4. Bg2 dxc4 5. Na3 Bxa3 6. bxa3 O-O 7. Bb2 Nbd7 8. Rc1 Nb6 9. O-O Bd7 10. Qc2 Ba4 11. Qb1 h6 12. Qa1 1/2-1/2

[Event "35th European Club Cup 2019"]
[Site "Ulcinj"]
[Date "2019.11.14"]
[Round "5.2"]
[White "Bratkovic, Jakob"]
[Black "Alekseev, Evgeny"]
[Result "0-1"]
[ECO "B32"]
[WhiteElo "2308"]
[BlackElo "2623"]
[Annotator "ChessBase"]
[PlyCount "58"]
[EventDate "2019.11.10"]
[EventType "team-tourn"]
[EventCountry "MNE"]
[SourceTitle "playchess.com"]
[Source "ChessBase"]
[SourceQuality "1"]
[WhiteTeam "Maribor"]
[BlackTeam "Law & Order"]
[TimeControl "40/5400+30:1800+30"]

1. e4 {[%emt 0:01:42]} c5 {[%emt 0:00:00]} 2. Nf3 {[%emt 0:00:08]} Nc6 {[%emt 0:00:39]} 3. d4 {[%emt 0:00:18]} cxd4 {[%emt 0:00:48]} 4. Nxd4 {[%emt 0:00:10]} Qb6 {[%emt 0:01:41]} 5. Nb3 {[%emt 0:01:59]} Nf6 {[%emt 0:00:45]} 6. Nc3 {[%emt 0:01:58]} e6 {[%emt 0:00:18]} 7. Be3 {[%emt 0:07:19]} Qc7 {[%emt 0:01:43]} 8. Qd2 {[%emt 0:06:07]} Bb4 {[%emt 0:08:37]} 9. f3 d5 {[%emt 0:00:30]} 10. a3 Bxc3 {[%emt 0:00:30]} 11. Qxc3 dxe4 {[%emt 0:00:30]} 12. fxe4 O-O {[%emt 0:00:30]} 13. Bd3 Ng4 {[%emt 0:00:30]} 14. Bd2 b6 {[%emt 0:00:30]} 15. Be2 Nf6 {[%emt 0:00:30]} 16. Bf3 Bb7 {[%emt 0:00:30]} 17. O-O-O Rac8 {[%emt 0:00:30]} 18. h4 Qb8 {[%emt 0:00:30]} 19. Qe3 Ne5 {[%emt 0:00:30]} 20. Bb4 Nc4 {[%emt 0:00:30]} 21. Qe1 Qe5 {[%emt 0:00:30]} 22. Bc3 Qf4+ {[%emt 0:00:30]} 23. Kb1 Nxe4 {[%emt 0:00:30]} 24. Rd4 f5 {[%emt 0:00:30]} 25. Bxe4 Bxe4 {[%emt 0:00:30]} 26. Rd7 Rf7 {[%emt 0:00:30]} 27. Qd1 Bxc2+ {[%emt 0:00:30]} 28. Qxc2 Rxd7 {[%emt 0:00:30]} 29. Re1 Ne3 {[%emt 0:00:30]} 0-1

[Event "35th European Club Cup 2019"]
[Site "Ulcinj"]
[Date "2019.11.14"]
[Round "5.3"]
[White "Rakhmanov, Aleksandr"]
[Black "Mikhalchishin, Adrian"]
[Result "1-0"]
[ECO "A05"]
[WhiteElo "2638"]
[BlackElo "2467"]
[Annotator "ChessBase"]
[PlyCount "53"]
[EventDate "2019.11.10"]
[EventType "team-tourn"]
[EventCountry "MNE"]
[SourceTitle "playchess.com"]
[Source "ChessBase"]
[SourceQuality "1"]
[WhiteTeam "Law & Order"]
[BlackTeam "Maribor"]
[TimeControl "40/5400+30:1800+30"]

1. Nf3 {[%emt 0:00:00]} Nf6 {[%emt 0:00:49]} 2. g3 {[%emt 0:01:28]} d5 {[%emt 0:00:43]} 3. Bg2 {[%emt 0:01:13]} b5 {[%emt 0:03:15]} 4. O-O {[%emt 0:02:54]} e6 {[%emt 0:01:33]} 5. d3 {[%emt 0:04:21]} Bb7 {[%emt 0:00:47]} 6. c4 {[%emt 0:00:08]} c6 {[%emt 0:00:08]} 7. cxb5 {[%emt 0:01:39]} cxb5 {[%emt 0:00:06]} 8. a4 {[%emt 0:00:05]} b4 {[%emt 0:16:19]} 9. a5 {[%emt 0:00:06]} Na6 {[%emt 0:00:30]} 10. Nbd2 {[%emt 0:16:08]} Bd6 {[%emt 0:17:48]} 11. e4 {[%emt 0:02:52]} Nd7 {[%emt 0:04:09]} 12. Nd4 {[%emt 0:15:34]} O-O {[%emt 0:01:45]} 13. exd5 {[%emt 0:02:37]} Bxd5 {[%emt 0:02:02]} 14. Bxd5 {[%emt 0:00:52]} exd5 {[%emt 0:00:01]} 15. N2f3 {[%emt 0:02:14]} Ne5 {[%emt 0:04:42]} 16. Be3 {[%emt 0:13:34]} Qf6 {[%emt 0:07:47]} 17. Rc1 {[%emt 0:08:00]} Rac8 {[%emt 0:23:18]} 18. Rxc8 {[%emt 0:00:26]} Rxc8 {[%emt 0:00:01]} 19. Nxe5 {[%emt 0:00:10]} Bxe5 {[%emt 0:00:42]} 20. Qg4 {[%emt 0:00:09]} Ra8 {[%emt 0:00:42]} 21. Rc1 {[%emt 0:03:59]} Nc7 {[%emt 0:04:30]} 22. Rc6 {[%emt 0:18:02]} Qd8 {[%emt 0:03:09]} 23. Nf5 {[%emt 0:00:18]} d4 {[%emt 0:03:18]} 24. Bf4 {[%emt 0:02:17]} h5 {[%emt 0:01:50]} 25. Nh6+ {[%emt 0:00:06]} Kf8 {[%emt 0:00:12]} 26. Qxh5 {[%emt 0:00:22]} Qd7 {[%emt 0:00:50]} 27. Bxe5 {[%emt 0:00:40]} 1-0

[Event "35th European Club Cup 2019"]
[Site "Ulcinj"]
[Date "2019.11.14"]
[Round "5.3"]
[White "Verstraeten, Rein"]
[Black "Van Baar, Esper"]
[Result "1-0"]
[ECO "D39"]
[WhiteElo "2379"]
[BlackElo "2176"]
[Annotator "NA"]
[PlyCount "49"]
[EventDate "2019.11.10"]
[EventType "team-tourn"]
[EventCountry "MNE"]
[SourceTitle "playchess.com"]
[Source "ChessBase"]
[SourceQuality "1"]
[WhiteTeam "HWP Sas van Gent"]
[BlackTeam "Kennemer Combinatie"]
[TimeControl "40/5400+30:1800+30"]

1. d4 {[%emt 0:00:00]} Nf6 {[%emt 0:00:00]} 2. c4 {[%emt 0:00:00]} e6 {[%emt 0:00:00]} 3. Nf3 {[%emt 0:01:50]} d5 {[%emt 0:00:23]} 4. Nc3 {[%emt 0:01:11]} dxc4 {[%emt 0:02:11]} 5. Bg5 {[%emt 0:02:33]} Bb4 {[%emt 0:02:20]} 6. e4 {[%emt 0:01:18]} c5 {[%emt 0:03:58]} 7. Bxc4 {[%emt 0:05:30]} cxd4 {[%emt 0:04:32]} 8. Nxd4 {[%emt 0:00:11]} Qa5 {[%emt 0:09:36]} 9. Bb5+ {[%emt 0:08:49]} Nbd7 {[%emt 0:06:24]} 10. Bxf6 {[%emt 0:00:18]} Bxc3+ {[%emt 0:04:07]} 11. bxc3 {[%emt 0:00:13]} Qxc3+ {[%emt 0:02:42]} 12. Kf1 {[%emt 0:00:09]} gxf6 {[%emt 0:00:41]} 13. h4 {[%emt 0:05:14]} a6 {[%emt 0:04:59]} 14. Rh3 {[%emt 0:00:30]} Qb4 {[%emt 0:11:16]} 15. Rb1 {[%emt 0:07:32]} Qd6 {[%emt 0:02:18]} 16. Rd3 {[%emt 0:20:52]} axb5 {[%emt 0:13:35]} 17. Nxb5 {[%emt 0:00:19]} Qh2 {[%emt 0:00:03]} 18. Nd6+ {[%emt 0:00:47]} Kf8 {[%emt 0:00:06]} 19. Rh3 {[%emt 0:19:54]} Qf4 {[%emt 0:07:54]} 20. Nxc8 {[%emt 0:03:59]} Rxc8 {[%emt 0:02:55]} 21. Qxd7 {[%emt 0:00:19]} Rc2 {[%emt 0:07:27]} 22. Rf3 {[%emt 0:00:18]} Qxh4 {[%emt 0:01:12]} 23. Qd6+ {[%emt 0:00:40]} Kg7 {[%emt 0:04:21]} 24. Rg3+ {[%emt 0:00:06]} Kh6 {[%emt 0:00:11]} 25. Rh3 {[%emt 0:00:07]} 1-0

[Event "35th European Club Cup 2019"]
[Site "Ulcinj"]
[Date "2019.11.14"]
[Round "5.4"]
[White "Huzman, Alexander"]
[Black "Olivier, Pierre"]
[Result "1/2-1/2"]
[ECO "A04"]
[WhiteElo "2577"]
[BlackElo "2200"]
[Annotator "ChessBase"]
[PlyCount "86"]
[EventDate "2019.11.10"]
[EventType "team-tourn"]
[EventCountry "MNE"]
[SourceTitle "playchess.com"]
[Source "ChessBase"]
[SourceQuality "1"]
[WhiteTeam "Beer Sheva"]
[BlackTeam "Asnieres"]
[TimeControl "40/5400+30:1800+30"]

1. Nf3 {[%emt 0:00:00]} c5 {[%emt 0:00:01]} 2. b3 {[%emt 0:03:41]} d6 {[%emt 0:05:31]} 3. e4 {[%emt 0:08:03]} e5 {[%emt 0:06:53]} 4. Bb5+ {[%emt 0:07:27]} Nc6 {[%emt 0:01:03]} 5. O-O {[%emt 0:03:48]} g6 {[%emt 0:32:21]} 6. b4 cxb4 {[%emt 0:00:30]} 7. a3 {[%emt 0:06:55]} Bg7 {[%emt 0:02:04]} 8. axb4 {[%emt 0:08:26]} Nge7 {[%emt 0:04:35]} 9. d3 {[%emt 0:02:22]} O-O {[%emt 0:00:48]} 10. c3 {[%emt 0:00:05]} h6 {[%emt 0:16:25]} 11. Bc4 {[%emt 0:01:55]} a6 {[%emt 0:05:17]} 12. Nbd2 {[%emt 0:07:24]} Rb8 {[%emt 0:05:52]} 13. b5 {[%emt 0:05:45]} axb5 {[%emt 0:01:25]} 14. Bxb5 {[%emt 0:00:29]} Be6 {[%emt 0:06:14]} 15. Ba3 {[%emt 0:01:23]} Qc7 {[%emt 0:00:08]} 16. Bc4 {[%emt 0:10:41]} Bxc4 {[%emt 0:00:27]} 17. Nxc4 {[%emt 0:00:06]} Rfd8 {[%emt 0:00:15]} 18. Ne3 {[%emt 0:02:08]} b5 {[%emt 0:00:39]} 19. Qb3 {[%emt 0:00:46]} Bf6 {[%emt 0:03:04]} 20. Rfb1 {[%emt 0:02:48]} Qd7 {[%emt 0:00:54]} 21. h3 {[%emt 0:00:47]} Bg5 {[%emt 0:02:20]} 22. Ng4 {[%emt 0:04:35]} Kg7 {[%emt 0:00:51]} 23. Qd1 {[%emt 0:00:51]} Ng8 {[%emt 0:00:17]} 24. d4 {[%emt 0:00:50]} exd4 {[%emt 0:01:18]} 25. Nxg5 {[%emt 0:02:46]} hxg5 {[%emt 0:00:09]} 26. cxd4 {[%emt 0:00:01]} d5 {[%emt 0:00:14]} 27. e5 {[%emt 0:00:05]} Qf5 {[%emt 0:02:06]} 28. Bd6 {[%emt 0:03:53]} Rb7 {[%emt 0:00:33]} 29. Rb3 {[%emt 0:01:59]} Rdd7 {[%emt 0:00:31]} 30. Ra6 {[%emt 0:02:12]} Nd8 {[%emt 0:00:49]} 31. Ne3 {[%emt 0:01:33]} Qe4 {[%emt 0:00:49]} 32. f3 {[%emt 0:01:28]} Qh4 {[%emt 0:00:26]} 33. Ng4 {[%emt 0:01:41]} Ne6 {[%emt 0:00:21]} 34. Bb4 {[%emt 0:00:04]} Qg3 {[%emt 0:00:31]} 35. Bd2 {[%emt 0:03:42]} Nf4 {[%emt 0:00:36]} 36. Bxf4 {[%emt 0:00:11]} Qxf4 {[%emt 0:00:20]} 37. Rc3 {[%emt 0:02:40]} b4 {[%emt 0:00:30]} 38. Re3 {[%emt 0:02:19]} b3 {[%emt 0:00:24]} 39. Rxb3 {[%emt 0:00:29]} Rxb3 {[%emt 0:00:02]} 40. Qxb3 {[%emt 0:00:00]} Qxd4+ {[%emt 0:00:00]} 41. Qe3 {[%emt 0:05:34]} Qxe3+ {[%emt 0:03:56]} 42. Nxe3 {[%emt 0:00:02]} Re7 {[%emt 0:02:02]} 43. Nxd5 {[%emt 0:02:23]} Rxe5 {[%emt 0:00:15]} 1/2-1/2

[Event "35th European Club Cup 2019"]
[Site "Ulcinj"]
[Date "2019.11.14"]
[Round "5.5"]
[White "De Schampheleire, Glen"]
[Black "Duijn, Richard"]
[Result "1-0"]
[ECO "A30"]
[WhiteElo "2359"]
[BlackElo "2220"]
[Annotator "NA"]
[PlyCount "47"]
[EventDate "2019.11.10"]
[EventType "team-tourn"]
[EventCountry "MNE"]
[SourceTitle "playchess.com"]
[Source "ChessBase"]
[SourceQuality "1"]
[WhiteTeam "HWP Sas van Gent"]
[BlackTeam "Kennemer Combinatie"]
[TimeControl "40/5400+30:1800+30"]

1. Nf3 {[%emt 0:00:00]} Nf6 {[%emt 0:00:03]} 2. g3 {[%emt 0:00:00]} b6 {[%emt 0:00:20]} 3. Bg2 {[%emt 0:00:00]} Bb7 {[%emt 0:00:05]} 4. O-O {[%emt 0:01:52]} e6 {[%emt 0:00:11]} 5. c4 {[%emt 0:00:15]} c5 {[%emt 0:01:44]} 6. Nc3 {[%emt 0:00:16]} Be7 {[%emt 0:03:35]} 7. Re1 {[%emt 0:02:16]} d5 {[%emt 0:05:36]} 8. cxd5 {[%emt 0:00:17]} Nxd5 {[%emt 0:00:30]} 9. e4 {[%emt 0:00:22]} Nb4 {[%emt 0:03:42]} 10. d4 cxd4 {[%emt 0:03:43]} 11. Nxd4 {[%emt 0:00:27]} O-O {[%emt 0:01:24]} 12. Be3 {[%emt 0:09:33]} N8c6 {[%emt 0:08:05]} 13. Nxc6 {[%emt 0:14:01]} Nxc6 {[%emt 0:04:14]} 14. Qa4 {[%emt 0:06:53]} Bb4 {[%emt 0:06:50]} 15. Rac1 {[%emt 0:07:27]} Qe7 {[%emt 0:04:35]} 16. a3 {[%emt 0:05:22]} Bxc3 {[%emt 0:04:11]} 17. Rxc3 {[%emt 0:00:06]} Ne5 18. Rec1 {[%emt 0:05:06]} Rfb8 {[%emt 0:26:46]} 19. Bf4 {[%emt 0:02:09]} f6 20. Rc7 {[%emt 0:04:35]} Qd6 {[%emt 0:06:18]} 21. Bxe5 {[%emt 0:01:11]} fxe5 22. Rd7 {[%emt 0:01:40]} Qf8 {[%emt 0:02:55]} 23. Rcc7 {[%emt 0:00:38]} b5 24. Qd1 1-0

[Event "35th European Club Cup 2019"]
[Site "Ulcinj"]
[Date "2019.11.14"]
[Round "5.5"]
[White "Kirszenberg, Marc"]
[Black "Mikhalevski, Victor"]
[Result "0-1"]
[ECO "A66"]
[WhiteElo "2137"]
[BlackElo "2570"]
[Annotator "ChessBase"]
[PlyCount "62"]
[EventDate "2019.11.10"]
[EventType "team-tourn"]
[EventCountry "MNE"]
[SourceTitle "playchess.com"]
[Source "ChessBase"]
[SourceQuality "1"]
[WhiteTeam "Asnieres"]
[BlackTeam "Beer Sheva"]
[TimeControl "40/5400+30:1800+30"]

1. d4 {[%emt 0:00:00]} Nf6 {[%emt 0:00:00]} 2. c4 {[%emt 0:00:00]} e6 {[%emt 0:00:00]} 3. Nc3 {[%emt 0:00:00]} c5 {[%emt 0:00:07]} 4. d5 {[%emt 0:00:00]} exd5 {[%emt 0:00:05]} 5. cxd5 {[%emt 0:00:00]} d6 {[%emt 0:00:06]} 6. e4 {[%emt 0:00:00]} g6 {[%emt 0:00:09]} 7. f4 {[%emt 0:00:12]} Bg7 {[%emt 0:00:13]} 8. e5 {[%emt 0:00:15]} Nfd7 {[%emt 0:00:24]} 9. Ne4 {[%emt 0:00:06]} dxe5 {[%emt 0:00:10]} 10. Nd6+ {[%emt 0:00:03]} Ke7 {[%emt 0:00:09]} 11. Nxc8+ {[%emt 0:00:06]} Qxc8 {[%emt 0:00:04]} 12. Nf3 {[%emt 0:00:24]} Rd8 {[%emt 0:00:22]} 13. fxe5 {[%emt 0:11:26]} Nxe5 {[%emt 0:00:40]} 14. Bg5+ {[%emt 0:00:38]} Kf8 {[%emt 0:00:16]} 15. Bxd8 {[%emt 0:01:58]} Qxd8 {[%emt 0:00:04]} 16. Nxe5 {[%emt 0:10:31]} Bxe5 {[%emt 0:01:42]} 17. Qe2 {[%emt 0:08:14]} Qa5+ {[%emt 0:07:23]} 18. Qd2 {[%emt 0:04:45]} Qa4 {[%emt 0:04:48]} 19. Be2 {[%emt 0:04:20]} Qh4+ {[%emt 0:02:26]} 20. Kd1 {[%emt 0:02:18]} Nd7 {[%emt 0:00:21]} 21. Rc1 {[%emt 0:03:04]} Rd8 {[%emt 0:03:08]} 22. Rc4 {[%emt 0:00:36]} Bd4 {[%emt 0:00:52]} 23. Kc1 {[%emt 0:19:23]} Nb6 {[%emt 0:01:28]} 24. Rc2 {[%emt 0:05:50]} Nxd5 {[%emt 0:01:00]} 25. Kb1 {[%emt 0:02:23]} Ne3 {[%emt 0:11:34]} 26. Rcc1 {[%emt 0:01:43]} Qf2 {[%emt 0:01:06]} 27. Rxc5 {[%emt 0:03:52]} Bf6 {[%emt 0:01:56]} 28. Qe1 {[%emt 0:03:13]} Rd1+ {[%emt 0:00:18]} 29. Qxd1 {[%emt 0:00:23]} Nxd1 {[%emt 0:00:06]} 30. Rc8+ {[%emt 0:00:07]} Kg7 {[%emt 0:00:05]} 31. Rxd1 {[%emt 0:00:32]} Qxe2 {[%emt 0:00:06]} 0-1

[Event "35th European Club Cup 2019"]
[Site "Ulcinj"]
[Date "2019.11.14"]
[Round "5.6"]
[White "Greenfeld, Alon"]
[Black "Moingt, Jean-Claude"]
[Result "1-0"]
[ECO "A43"]
[WhiteElo "2513"]
[BlackElo "2127"]
[Annotator "ChessBase"]
[PlyCount "73"]
[EventDate "2019.11.10"]
[EventType "team-tourn"]
[EventCountry "MNE"]
[SourceTitle "playchess.com"]
[Source "ChessBase"]
[SourceQuality "1"]
[WhiteTeam "Beer Sheva"]
[BlackTeam "Asnieres"]
[TimeControl "40/5400+30:1800+30"]

1. d4 Nf6 2. Nf3 c5 3. d5 b5 4. Bg5 Qb6 5. e3 d6 6. a4 b4 7. a5 Qb7 8. Bc4 g6 9. a6 Qc7 10. c3 Bg7 11. O-O Nbd7 12. Nbd2 O-O 13. e4 Nb6 14. Bb5 Bd7 15. Bxd7 Nbxd7 16. Qe2 bxc3 17. bxc3 h6 18. Bh4 Nb6 19. Rab1 Rab8 20. Qd3 g5 21. Bg3 Nh5 22. Rfc1 Nxg3 23. hxg3 Qc8 24. Nf1 Rd8 25. Ne3 e6 26. dxe6 Qxe6 27. Nf5 d5 28. exd5 Rxd5 29. Qxd5 Nxd5 30. Rxb8+ Kh7 31. Nxg7 Kxg7 32. Rd8 Nc7 33. Re1 Qf6 34. Rd7 Nxa6 35. Ne5 Kg8 36. Nxf7 Kg7 37. Nxg5+ 1-0